Cogmind - Beta 13 @@@ ROGUE MODE // 2024.04.02 @ 01:42:35 Player: Arden Result: Destroyed by G-47 Trooper with Particle Gun Performance ------------- Evolutions (2) 1000 Regions Visited (6) 1200 Robots Destroyed (57) 285 Value Destroyed (1779) 1779 Prototype IDs (25) 500 Alien Tech Used (0) 0 Bonus (322) 322 TOTAL SCORE: 5086 Bonus ------- High Alert Combat Kills 22 Aligned with FarCom 300 Cogmind --------- Core Integrity 0/550 Matter 257/300 Energy 239/240 System Corruption 0% Temperature Warm (177) Movement Walking (120) Location -8/Storage Parts ------- > --- POWER (2) -------- Nuclear Core > --- PROPULSION (3) --- Aluminum Leg Aluminum Leg > --- UTILITY (3) ------ Improved Heat Sink Visual Processing Unit > --- WEAPON (3) ------- Autogun > --- INVENTORY (5) ---- Hover Unit AWS/Thermal Peak State ------------ > --- POWER ------------ Nuclear Core Nuclear Core > --- PROPULSION ------- Aluminum Leg Aluminum Leg Flight Unit > --- UTILITY ---------- Visual Processing Unit Experimental Sensor Array Signal Interpreter > --- WEAPON ----------- Heavy Laser AWS/Thermal > --- INVENTORY -------- Hover Unit Improved Heat Sink Large Battery Propulsion Shielding [Rating: 41] Favorites ----------- Power Light Ion Engine Engine Light Ion Engine Power Core Nuclear Core Propulsion Flight Unit Treads Light Treads Leg Aluminum Leg Wheel Wheel Hover Unit Hover Unit Flight Unit Flight Unit Utility Signal Interpreter Device Improved Terrain Scanner Storage High-capacity Battery Processor Signal Interpreter Protection Propulsion Shielding Weapon AWS/Thermal Energy Gun AWS/Thermal Energy Cannon Particle Cannon Ballistic Gun Heavy Assault Rifle Launcher Grenade Launcher Build | -11 -10 -10 -10 -9 -8 -8 ------- Run | Yrd Mat Min Exi Min Mat Sto Slots Evolved 4 | . . . . . 4 . Power 1 | . . . . . 1 . Propulsion 1 | . . . . . 1 . Utility 1 | . . . . . 1 . Weapon 1 | . . . . . 1 . Parts Attached 48 | 8 9 7 1 1 20 2 Power 10 | 2 . 1 . 1 5 1 Engine 7 | 2 . 1 . 1 2 1 Core 3 | . . . . . 3 . Reactor . | . . . . . . . Propulsion 15 | 3 4 1 . . 7 . Treads 1 | . 1 . . . . . Leg 7 | . . . . . 7 . Wheel 3 | 3 . . . . . . Hover 1 | . 1 . . . . . Flight 3 | . 2 1 . . . . Utility 8 | 1 2 1 . . 3 1 Device 4 | 1 . . . . 2 1 Storage 1 | . 1 . . . . . Processor 2 | . 1 1 . . . . Hackware . | . . . . . . . Protection 1 | . . . . . 1 . Artifact . | . . . . . . . Weapon 15 | 2 3 4 1 . 5 . Energy Gun 5 | 2 . . 1 . 2 . Energy Cannon 4 | . 1 2 . . 1 . Ballistic Gun 5 | . 1 2 . . 2 . Ballistic Cannon . | . . . . . . . Launcher 1 | . 1 . . . . . Special Weapon . | . . . . . . . Impact Weapon . | . . . . . . . Slashing Weapon . | . . . . . . . Piercing Weapon . | . . . . . . . Special Melee Weapon . | . . . . . . . Unidentified Prototypes 2 | . . . . . 2 . Corrupted Parts 2 | 2 . . . . . . System Corruption 7 | 7 . . . . . . Parts Lost 19 | . . 4 . 1 8 6 Power 5 | . . 1 . . 3 1 Propulsion 6 | . . 1 . 1 3 1 Utility 3 | . . 1 . . . 2 Weapon 5 | . . 1 . . 2 2 Highest Loss Streak 5 | . . 4 . 1 5 5 To Critical Strikes . | . . . . . . . Average Slot Usage (%) 83 | . 95 93 93 71 80 94 Engine 10 | . 14 12 14 14 3 8 Core 3 | . . . . . 11 9 Leg 5 | . . . . . 14 27 Wheel 1 | . 6 . . . . . Flight 15 | . 17 25 28 14 7 . Device 4 | . 14 6 . . 5 12 Processor 20 | . 10 20 28 28 16 9 Protection 1 | . . . . . 4 . Energy Gun 11 | . 14 6 5 14 12 9 Energy Cannon 2 | . 1 12 8 . 1 . Ballistic Gun 3 | . . 7 8 . 2 18 Launcher 1 | . 9 . . . . . Naked Turns . | . . . . . . . Heaviest Build 27 | 10 15 12 11 11 27 26 Greatest Support 30 | 20 20 8 8 8 30 30 Greatest Overweight (x) 8 | . 2 1 1 2 8 . Average Overweight (x) . | . . . . 1 1 . Largest Inventory Capacity 5 | 5 5 5 5 5 5 5 Average Capacity 5 | 5 5 5 5 5 5 5 Most Carried 5 | 5 5 5 5 5 5 4 Average Carried 3 | 2 3 2 4 3 3 3 Final Capacity 5 | 5 5 5 5 5 5 5 Final Carried 5 | 4 3 5 3 4 4 3 Class Distribution -------------------- 65% | Scavenger-Mutant 24% | Scavenger-Skirmisher 9% | Mutant Dominant Class ---------------- Scavenger-Mutant | -10/Materials Scavenger-Mutant | -10/Mines Scavenger-Mutant | -10/Exiles Scavenger-Mutant | -9/Mines Scavenger-Skirmisher | -8/Materials Scavenger-Skirmisher | -8/Storage Resources | -11 -10 -10 -10 -9 -8 -8 ----------- Run | Yrd Mat Min Exi Min Mat Sto Matter Collected 880 | 280 220 132 . 50 198 . Remotely . | . . . . . . . Salvage Created 2100 | 70 377 53 . 134 1306 160 Parts 112 | 7 35 4 . 5 51 10 Haulers Intercepted 1 | . . . . . 1 . Recyclers Shooed . | . . . . . . . Parts Field Recycled . | . . . . . . . Retrieved Matter . | . . . . . . . Parts Self-Destructed . | . . . . . . . Prevented . | . . . . . . . Kills | -11 -10 -10 -10 -9 -8 -8 ------- Run | Yrd Mat Min Exi Min Mat Sto Combat Hostiles Destroyed 45 | 1 13 3 . 5 20 3 Guns 31 | 1 5 2 . 5 15 3 Cannons 5 | . . 1 . . 4 . AOE 9 | . 8 . . . 1 . Classes Destroyed 11 | 2 4 . . . 5 . Worker 1 | . 1 . . . . . Builder 2 | . 1 . . . 1 . Tunneler 1 | 1 . . . . . . Hauler 1 | . . . . . 1 . Recycler 1 | . . . . . 1 . Operator 1 | . . . . . 1 . Watcher 5 | . 2 . . . 3 . Swarmer 12 | . 6 3 . 3 . . Grunt 28 | 1 7 . . 2 16 2 Sentry 3 | . . . . . 2 1 Specialist 2 | . . . . . 2 . Best Kill Streak 10 | 1 7 2 . 2 10 3 Combat Bots Only 8 | 1 6 2 . 2 8 3 Max Kills in Single Turn 3 | 1 3 1 . 1 2 1 Gunslinging . | . . . . . . . Exploded 3 | . 3 . . . 1 . Melee . | . . . . . . . Uniques/NPCs Destroyed . | . . . . . . . Combat | -11 -10 -10 -10 -9 -8 -8 -------- Run | Yrd Mat Min Exi Min Mat Sto Hostile Shots Fired 257 | 5 30 42 . 11 116 53 Missed 79 | 2 11 10 . 4 32 20 Damage Taken 2507 | 31 203 256 . 84 1391 542 Core 711 | . 69 68 . 19 493 62 Absorbed by Shields . | . . . . . . . Redirected to Shielding 51 | . . . . . 47 4 Core Remaining (%) 68 | 100 . . . 37 . . Volleys Fired 102 | 4 23 17 5 . 46 7 Largest 3 | 2 2 2 1 . 2 3 Hottest 108 | 80 108 108 68 . 92 96 Shots Fired 241 | 9 38 24 4 18 130 18 Gun 207 | 9 27 18 3 18 114 18 Cannon 27 | . 4 6 1 . 16 . Launcher 7 | . 7 . . . . . Special . | . . . . . . . Kinetic 35 | . 4 9 3 . 7 12 Thermal 136 | . 4 6 1 18 107 . Explosive 7 | . 7 . . . . . Electromagnetic 63 | 9 23 9 . . 16 6 Robot Hit Streak 11 | 4 6 3 . 3 11 6 Robot Miss Streak 5 | 2 3 5 . 4 3 3 Penetration Max . | . . . . . . . Secondary Targets 2 | . . . . . 1 1 Max Gunslinging Chain 1 | . . . . . 1 1 Autonomous 99 | . . . . 18 81 . Shots Hit Robots 153 | 6 17 8 . 11 97 14 Core Hits 85 | 2 23 3 . 6 44 7 Critical Kills . | . . . . . . . Critical Parts Destroyed . | . . . . . . . Critical Strikes 1 | . . . . . 1 . Burn 1 | . . . . . 1 . Melee Attacks . | . . . . . . . Impact . | . . . . . . . Slashing . | . . . . . . . Piercing . | . . . . . . . Sneak Attacks . | . . . . . . . Combat Hostiles . | . . . . . . . Follow-up Attacks . | . . . . . . . Damage Inflicted 4081 | 92 607 111 . 291 2692 288 Guns 3194 | 92 178 70 . 291 2275 288 Cannons 352 | . . 41 . . 311 . Explosions 518 | . 427 . . . 91 . Melee . | . . . . . . . Ramming 17 | . 2 . . . 15 . Kinetic 296 | . 22 48 . . 75 151 Thermal 2679 | . 56 41 . 291 2291 . Explosive 371 | . 371 . . . . . Electromagnetic 718 | 92 156 22 . . 311 137 Impact . | . . . . . . . Slashing . | . . . . . . . Piercing . | . . . . . . . Highest Corruption 7 | 7 7 7 7 7 . . Average Corruption 6 | 6 7 7 7 7 . . Corruption Purged . | . . . . . . . Corruption Blocked . | . . . . . . . Effects 64 | 5 16 9 12 22 . . Message Errors 10 | 1 3 . 2 4 . . Matter Fused 16 | . 6 4 1 5 . . Heat Flow Errors 11 | 2 3 1 1 4 . . Energy Discharges 7 | . 1 2 2 2 . . Parts Fused 1 | . . . . 1 . . Data Loss (minor) 11 | . 2 1 4 4 . . Data Loss (major) 4 | 1 1 . 1 1 . . Misfires 2 | 1 . 1 . . . . Alerts 1 | . . . . 1 . . Weapon Failures 1 | . . . 1 . . . Overload Shots . | . . . . . . . Overflow Damage . | . . . . . . . Projectiles . | . . . . . . . Explosions . | . . . . . . . Melee . | . . . . . . . Knockbacks . | . . . . . . . Impact . | . . . . . . . Kinetic . | . . . . . . . Secondary . | . . . . . . . Self-Inflicted Damage 1 | . 1 . . . . . Shots . | . . . . . . . Rammed 1 | . 1 . . . . . Targets Rammed 5 | . 1 . . . 4 . Kicked 4 | . . . . . 4 . Crushed . | . . . . . . . Highest Temperature 591 | 279 331 318 103 165 591 190 Average Temperature 138 | 104 107 176 35 68 188 90 Received Heat Transfer 888 | 18 60 . . 27 486 297 Effects 19 | 2 1 . . . 16 . Shutdowns 4 | . . . . . 4 . Energy Bleed 2 | . . . . . 2 . Interference 8 | 2 . . . . 6 . Matter Decay 1 | . 1 . . . . . Damage (major) 2 | . . . . . 2 . Damage (core) 2 | . . . . . 2 . Siege Activations . | . . . . . . . Robots Corrupted . | . . . . . . . Combat Hostiles . | . . . . . . . Parts Fried . | . . . . . . . Impact Corruptions . | . . . . . . . Robots Melted . | . . . . . . . Combat Hostiles . | . . . . . . . Parts Melted 7 | . . . . 2 5 . Heat Transferred 3752 | . 100 74 . 370 3208 . Parts Sabotaged . | . . . . . . . Parts Stolen . | . . . . . . . Parts Stripped . | . . . . . . . Power Chain Reactions 2 | . 1 . . . 1 . Alert | -11 -10 -10 -10 -9 -8 -8 ------- Run | Yrd Mat Min Exi Min Mat Sto Peak Influence 416 | 25 344 73 . 162 416 170 Initial 50 | . 16 43 . . . 50 Average 136 | 14 220 59 . 53 251 90 Maximum Alert Level 2 | . 1 . . . 2 . Low Security (%) 72 | 100 42 100 . 100 37 100 Level 1 22 | . 57 . . . 44 . Level 2 4 | . . . . . 18 . Level 3 . | . . . . . . . Level 4 . | . . . . . . . Level 5 . | . . . . . . . High Security . | . . . . . . . Max Security . | . . . . . . . Squads Dispatched 9 | . 4 . . . 3 2 Investigation 3 | . 1 . . . 1 1 Extermination . | . . . . . . . Reinforcement 6 | . 3 . . . 2 1 Assault . | . . . . . . . Garrison . | . . . . . . . Intercept . | . . . . . . . Searches Triggered . | . . . . . . . Construction Impeded . | . . . . . . . Haulers Reinforced . | . . . . . . . Active Scanning Responses . | . . . . . . . Cargo Convoy Interrupts . | . . . . . . . Stealth | -11 -10 -10 -10 -9 -8 -8 --------- Run | Yrd Mat Min Exi Min Mat Sto Distress Signals 3 | . 1 . . . 2 . Communications Jammed . | . . . . . . . Distress Signals . | . . . . . . . Times Spotted 67 | 1 16 3 . 6 28 13 Peak Tracking Total 12 | 1 5 3 . 3 7 12 Tactical Retreats 2 | . . . . 1 . 1 Traps | -11 -10 -10 -10 -9 -8 -8 ------- Run | Yrd Mat Min Exi Min Mat Sto Traps Triggered 1 | . . . . . . 1 Indirectly . | . . . . . . . Trap Hack Attempts . | . . . . . . . Triggered . | . . . . . . . Disarmed . | . . . . . . . Reprogrammed . | . . . . . . . Reused . | . . . . . . . Traps Extracted . | . . . . . . . Installed . | . . . . . . . Triggered . | . . . . . . . Most Traps Carried 3 | . . 3 3 . . . Machines | -11 -10 -10 -10 -9 -8 -8 ---------- Run | Yrd Mat Min Exi Min Mat Sto Machines Disabled 5 | . 1 . . 1 2 1 Max in Single Turn 1 | . 1 . . 1 1 1 Machines Repaired . | . . . . . . . Machines Dismantled . | . . . . . . . Machines Sabotaged . | . . . . . . . Overloaded Fab Kills . | . . . . . . . Hacking | -11 -10 -10 -10 -9 -8 -8 --------- Run | Yrd Mat Min Exi Min Mat Sto Machines Accessed 8 | . 3 . 2 1 1 1 Terminals 6 | . 3 . . 1 1 1 Fabricators . | . . . . . . . Repair Stations . | . . . . . . . Recycling Units . | . . . . . . . Scanalyzers . | . . . . . . . Garrison Access . | . . . . . . . Total Hacks 46 | . 10 . 24 6 3 3 Successful 40 | . 7 . 24 5 3 1 Failed 6 | . 3 . . 1 . 2 Catastrophic 2 | . 1 . . . . 1 Database Lockouts . | . . . . . . . Manual 5 | . 2 . 1 . 1 1 Terminals 22 | . 10 . . 6 3 3 Fabricators . | . . . . . . . Repair Stations . | . . . . . . . Recycling Units . | . . . . . . . Scanalyzers . | . . . . . . . Garrison Access . | . . . . . . . Terminal Hacks 40 | . 7 . 24 5 3 1 Record 30 | . 2 . 23 4 1 . Open Door 1 | . . . . . . 1 Emergency Access Points 1 | . 1 . . . . . Alert Level 3 | . 1 . . 1 1 . Unreport Threat 2 | . 1 . . . 1 . Surveillance Status 1 | . 1 . . . . . Zone Layout 1 | . 1 . . . . . Derelict Proto ID Bank 1 | . . . 1 . . . Fabricator Hacks . | . . . . . . . Repair Station Hacks . | . . . . . . . Recycling Unit Hacks . | . . . . . . . Scanalyzer . | . . . . . . . Garrison Access Hacks . | . . . . . . . Unauthorized Hacks . | . . . . . . . Terminals . | . . . . . . . Fabricators . | . . . . . . . Repair Stations . | . . . . . . . Recycling Units . | . . . . . . . Scanalyzers . | . . . . . . . Garrison Access . | . . . . . . . Data Cores Recovered 1 | . . . . . 1 . Used . | . . . . . . . Hacking Detections 5 | . 3 . . . 1 1 Full Trace Events 4 | . 2 . . . 1 1 Feedback Events . | . . . . . . . Feedback Blocked . | . . . . . . . Robot Schematics Acquired . | . . . . . . . Robots Built . | . . . . . . . Authchips . | . . . . . . . Time . | . . . . . . . Total Robot Build Rating . | . . . . . . . Part Schematics Acquired . | . . . . . . . Parts Built . | . . . . . . . Authchips . | . . . . . . . Time . | . . . . . . . Total Part Build Rating . | . . . . . . . Parts Repaired . | . . . . . . . Time . | . . . . . . . Parts Recycled . | . . . . . . . Recycled Matter . | . . . . . . . Retrieved Matter . | . . . . . . . Retrieved Components . | . . . . . . . Parts Scanalyzed . | . . . . . . . Part Schematics Acquired . | . . . . . . . Parts Damaged . | . . . . . . . Bothacking | -11 -10 -10 -10 -9 -8 -8 ------------ Run | Yrd Mat Min Exi Min Mat Sto Used RIF Installer . | . . . . . . . Robots Hacked . | . . . . . . . Non-combat . | . . . . . . . Combat . | . . . . . . . Robot Hacks Applied . | . . . . . . . Relay Couplers Released . | . . . . . . . Fabnet Peak Effective % . | . . . . . . . Robots Rewired . | . . . . . . . Allies Hacked . | . . . . . . . Hacks Repelled . | . . . . . . . Allies | -11 -10 -10 -10 -9 -8 -8 -------- Run | Yrd Mat Min Exi Min Mat Sto Total Allies . | . . . . . . . Largest Group . | . . . . . . . Highest-Rated Group . | . . . . . . . Highest-Rated Ally . | . . . . . . . Total Orders . | . . . . . . . Ally Attacks . | . . . . . . . Total Damage . | . . . . . . . Kills . | . . . . . . . Allies Corrupted . | . . . . . . . Allies Melted . | . . . . . . . Intel | -11 -10 -10 -10 -9 -8 -8 ------- Run | Yrd Mat Min Exi Min Mat Sto Robot Analysis Total . | . . . . . . . Derelict Logs Recovered 2 | . . 1 . 1 . . Drone Launches . | . . . . . . . Drone Recoveries . | . . . . . . . Exploration | -11 -10 -10 -10 -9 -8 -8 ------------- Run | Yrd Mat Min Exi Min Mat Sto Turns Passed 3458 | 216 539 251 440 1004 806 202 Spaces Moved 2927 | 218 521 379 811 503 345 150 Core 56 | 22 . . . . 34 . Treads 8 | . 8 . . . . . Legs 442 | . . . . . 292 150 Wheels 312 | 196 116 . . . . . Hover 31 | . 31 . . . . . Flight 2078 | . 366 379 811 503 19 . Fastest Speed 37 | 50 37 37 37 117 120 120 Average Speed 104 | 76 85 51 52 199 187 120 Slowest Speed 450 | 80 200 117 117 200 450 120 Overloaded Moves . | . . . . . . . Propulsion Burnouts . | . . . . . . . Robots Hopped . | . . . . . . . Cave-ins Triggered . | . . . . . . . Exploration Rate (%) 53 | 6 70 75 95 76 28 27 Regions Visited 6 Branch Regions 4 Pre-discovered Areas 3 | . . 1 1 1 . . Known Exits Taken 4 | . 1 1 1 1 . . Unknown Exits Taken 2 | 1 . . . . 1 . Scrap Searched . | . . . . . . . Spaces Dug . | . . . . . . . Terrain Destroyed 63 | . 45 . . 7 11 . Melee . | . . . . . . . Projectile 18 | . . . . 7 11 . AOE 45 | . 45 . . . . . Terrain Rammed . | . . . . . . . Walls Destroyed . | . . . . . . . Machines Disabled . | . . . . . . . Actions | -11 -10 -10 -10 -9 -8 -8 --------- Run | Yrd Mat Min Exi Min Mat Sto Total 3196 | 259 580 410 822 506 459 160 Wait 22 | 13 . . . . 9 . Move 2921 | 217 520 378 810 502 344 150 Hop . | . . . . . . . Pick Up 59 | 13 12 7 1 2 23 1 Fast Attach . | . . . . . . . Attach 44 | 7 7 6 1 1 20 2 Detach 7 | 1 2 1 1 . 2 . Swap 4 | 1 2 1 . . . . Drop 32 | 3 13 . 4 1 11 . Fire 102 | 4 23 17 5 . 46 7 Melee . | . . . . . . . Ram 1 | . 1 . . . . . Kick 4 | . . . . . 4 . Crush . | . . . . . . . Escape Stasis . | . . . . . . . Rewire . | . . . . . . . Trap . | . . . . . . . Miscellaneous . | . . . . . . . Route ------- -11/Scrapyard -10/Materials (discovered 3 exits: *Mat x2 / *Min) -10/Mines (discovered 2 exits: *Mat / *Exi) -10/Exiles (discovered 2 exits: *Min x2) -9/Mines -8/Materials -8/Storage History --------- Turn | Location | Event 2 | -11/Scrapyard | Met Revision 17 58 | -11/Scrapyard | Discovered new exit (range 8) 217 | -11/Scrapyard | Entered Materials 301 | -10/Materials | Build established: Mutant 350 | -10/Materials | Discovered new exit (range 11) 641 | -10/Materials | Build established: Scavenger-Mutant 721 | -10/Materials | Discovered new exit (range 8) 737 | -10/Materials | Discovered new exit (range 6) 755 | -10/Materials | Identified exit to Mines 756 | -10/Materials | Entered Mines 757 | -10/Mines | Assembled infested the area 762 | -10/Mines | Assisted by a Guerilla fighting off Assembled 818 | -10/Mines | Learned Materials terminal intel 837 | -10/Mines | Found a damaged Exp. Sensor Array with a note attached 872 | -10/Mines | Core integrity fell below 50% 896 | -10/Mines | Found Prototype Device 897 | -10/Mines | Lost 4 parts (1p1n1u1w) 920 | -10/Mines | Found a hidden stash of uninstalled traps 964 | -10/Mines | Discovered new exit (range 6) 967 | -10/Mines | Learned location of Storage (-8) 967 | -10/Mines | Identified exit to Materials 1005 | -10/Mines | Deemed a non-threat by the Exiles lab entrance 1005 | -10/Mines | Discovered new exit (range 5) 1007 | -10/Mines | Identified exit to Exiles 1007 | -10/Mines | Entered Exiles 1016 | -10/Exiles | Discovered new exit (range 15) 1030 | -10/Exiles | Met 8R-AWN 1046 | -10/Exiles | Met EX-HEX 1066 | -10/Exiles | Met EX-DEC 1076 | -10/Exiles | Learned location of Zion (-7) 1100 | -10/Exiles | Discovered new exit (range 14) 1106 | -10/Exiles | Identified exit to Mines 1144 | -10/Exiles | Visited The Gauntlet 1205 | -10/Exiles | Met EX-BIN 1239 | -10/Exiles | Aligned with FarCom system 1239 | -10/Exiles | Given EX-Vault access code 1251 | -10/Exiles | Opened EX-Vault 1259 | -10/Exiles | Found AWS/Thermal 1289 | -10/Exiles | Warned to stay clear of 0b10 Research branches 1447 | -10/Exiles | Left Exiles lab with AWS/Thermal 1447 | -10/Exiles | Entered Mines 2213 | -9/Mines | Discovered new exit (range 18) 2333 | -9/Mines | Identified exit to Materials 2451 | -9/Mines | Entered Materials 2451 | -8/Materials | Evolved 4 slots: Power x1, Propulsion x1, Utility x1, Weapon x1 2452 | -8/Materials | Loaded intel: 12 terminal locations 2495 | -8/Materials | Identified Exp. Sensor Array 2727 | -8/Materials | Lost 5 parts (2p2n1w) 2729 | -8/Materials | Destroyed 8 combat bots 2791 | -8/Materials | Build established: Scavenger-Skirmisher 3074 | -8/Materials | Discovered new exit (range 6) 3094 | -8/Materials | Core integrity fell below 50% 3107 | -8/Materials | Core integrity fell below 20% 3155 | -8/Materials | Lost 3 parts (1p1n1w) 3257 | -8/Materials | Entered Storage 3459 | -8/Storage | Destroyed by G-47 Trooper with Particle Gun Last Messages --------------- Sealed Heavy Doors opened. ALERT: Suspicious activity at Terminal S010. Dispatching Investigation squad. Acquired Particle Charger. Connecting with Recycling Unit... Transfer Shaft disabled. Y-45 Defender destroyed. Switching to secondary target: Y-45 Defender. Lgt. Deuterium Engine destroyed. Critical hit (Burn: +37). G-47 Trooper destroyed. Hvy. Assault Rifle destroyed. K-01 Serf collects debris. G-47 Trooper destroyed. Particle Charger destroyed. K-01 Serf collects debris. Hvy. EM Shotgun destroyed. Aluminum Leg destroyed. [Achievement: First Step to Greatness] [Achievement: 5k Club] Map ----- +----------------------------------------------------+ | ??????????????????????????????????? | | ??????????????????????????????????? | | ??????????????????????????????????? | | ??????????????????????????????????? | | ??????????????????????????????????? | | ??????????????????????????????????? | | ??????????????????????????????????? | | ??????????????????????????????????? | | ??????????????????????????????????? | | ??????????????????????????????????? | | ??????????????????????????????????? | | ??????????????????????????????????? | | ??????????????????????o?##????????? | | ??????????#####???????? #????????? | | ?###??????# ??????? #????????? | | ?? ###### ??????? ?????????? | | ???" + #??????? ??????????? | | ?????# #????####+######?????? | | ???" # #????# u #?????? | | ???" + ###### """ #??????? | | ?????# + """ #??????? | | ?????##+###"####### """ #??????? | | ??????# #??# k [ #??????? | | ??????# g #??# ""=Yl #??????? | | ??????# """" #??#gg"""g* #??????? | | ??????# ???"g#??# ""%!@[#??????? | | ??????# ???" #??# gg%! #??????? | | ??????# ????" #??###"Y"####??????? | | ??????# ????" #????#"""#?????????? | | ??????# """" #????#####?????????? | | ??????# #########??????????? | | ??????######/### !!!#??????????? | | +########### ### #??????????? | | + !!!!#??????????? | | ##T######??????????? | | ####???????????????? | | +##########T## #??????????????????? | | ??????????##?# #??????????????????? | | ?????????????# #??????????????????? | | ??????########+#??????????????????? | | ??????# #??????????????????? | | ??????# """" #??????????????????? | | ??????# "??" #??????????????????? | | ??????# "??" #??????????????????? | | ??????# "??" #??????????????????? | | ??????# "??" #??????????????????? | | ??????# """" #??????????????????? | | ??????# #??????????????????? | | ??????# #??????????????????? | | ??????####+############???????????? | +----------------------------------------------------+ Best States ------------- Heat Dissipation 45 Energy Generation 23 Energy Capacity 500 Matter Stores 300 Matter Capacity 300 Sight Range 18 Robot Scan Range 20 Terrain Scan Range 16 Terrain Scan Density 10 Propulsion Shielding 33 Evasion (%) 62 Recoil Reduction 1 Particle Charging 15 Item Schematics ----------------- None Robot Schematics ------------------ None Fabricated ------------ Nothing Alien Tech Used ----------------- None Achievements -------------- 5k Club Crack Shot Everything Is Under Control First Step to Greatness Librarian Loot Pinata One Hack Too Far Risk Taker Storm Trooper Tourist Uninvited Guest Universal Adapter Challenges ------------ None Game ------ Seed LauncherSubdwellerHammer Manual? 0 Play Time 01:11:56 Cumulative 1.1 hours Start 2024.04.02 @ 00:28:10 End 2024.04.02 @ 01:42:35 Sessions 1 Manual Loads 0 Difficulty Rogue Special Mode None Game No. 1 Rogue 1 Adventurer 0 Explorer 0 Win Type - Total 0 Types 0/0/0/0/0/0/0/0/0 Lore% 5 Gallery% 3 Achievement% 4 Wizard Run 0 Options --------- Layout 1 ASCII 0 Keyboard 0 Movement Arrows Keybinds 0 Fullscreen 1 Font 24/Smallcaps Map View 50x35 Zoom Use 0% Tactical HUD 0 Map Filters NONE Filters NONE Steam 1 RUN: b35f1c08-ce03-4445-b905-142a8e1e38d0